Workbook

Sheet Dessasoreamento
B2: Ministério da Integração Nacional
B3: Companhia de Desenvolvimento dos Vales do São Francisco e do Parnaíba
A6: CRONOGRAMA FÍSICO E FINANCEIRO
A9: ITEM | B9: DISCRIMINAÇÃO | C9: Un. | D9: Quant. Total | E9: PERÍODO- MÊSES | M9: TOTAL
E10: MÊS 1 | G10: MÊS 2 | I10: MÊS 3 | K10: MÊS 4
E11: Quant. | F11: Valor- R$ | G11: Quant. | H11: Valor- R$ | I11: Quant. | J11: Valor- R$ | K11: Quant. | L11: Valor- R$ | M11: Valor Unit. R$ | N11: Valor Total R$
A12: 1 | B12: Sistema flutuante de Bombeamento de água, composto de: Plataforma metálica flutuante para fixação dos conjuntos motobomba centrífuga padrão modelo METN300-250-315 KSB, montada em base metálica e motor elétrico de 150 CV / 6 pólos/ 380-440 V (1200 m³/h x 25 m.c.a.), apoiada sobre conjunto de flutuadores em material termoplástico (tambores em PEAD de Ø 600 x 1.000 mm), sendo 10 plataformas flutuantes, composta de três conjuntos motobomba em cada plataforma, incluído o arranjo hidráulico de tubulação/conexões de sucção e recalque (para interligação no trecho flexível); Válvula de Pé com crivo Ø 20", flangeada padrão NBR 7675, classe de pressão PN 6, corpo e crivo em Ferro Nodular ASTM A536 ou aço 1020, válvula e sede em bronze ou latão; com válvula borboleta Ø 16", acionamento através de caixa redutora c/ volante, tipo waffer, classe de pressão 150 psi, corpo e volante em Ferro Nodular ASTM A536; conjunto motobomba submersível para realização automática da escorva; transmissores eletrônicos de pressão para indicação remota e manômetro para indicação direta da pressão de recalque; mangote de borracha Ø18" x 6,0 m flange padrão ANSI B16.5; válvula ventosa tríplice função. | C12: Cj | D12: 10 | E12: 8 | F12: =E12*M12 -> 4431200 | G12: 2 | H12: =G12*M12 -> 1107800 | M12: 553900 | N12: =ROUND(D12*M12,2) -> 5539000
A13: 2 | B13: Tubulação Ø 450mm, em PEAD PE 100, SDR 26, PN 6 bar, Normalizado ABNT NBR 15.561 com certificado (total de 1.500 m em 30 linhas de 48 m cada, em trechos de 6 e/ou 12 metros, conectados por flange metálico entre pontas e solda por termofusão entre tubos), incluídas soldagem por termofusão, ancoragem e instalação | C13: Cj | D13: 30 | E13: 20 | F13: =E13*M13 -> 592120 | G13: 10 | H13: =G13*M13 -> 296060 | M13: 29606 | N13: 888180
A14: 3 | B14: Tubulação Ø 710 mm, em PEAD PE 100, SDR 26, PN 6 bar, Normalizado ABNT NBR 15.561 com certificado (total de 250 m em 8 linhas de 31,2 m cada (média), em trechos de 12 e/ou 6 metros metros, conectados por flange entre pontas e solda por termofusão entre tubos), incluídas soldagem por termofusão, ancoragem e instalação. | C14: Cj | D14: 10 | E14: 8 | F14: =E14*M14 -> 334026.6667 | G14: 2 | H14: =G14*M14 -> 83506.66667 | M14: 41753.33333 | N14: 417533.33
A18: ITEM | B18: DISCRIMINAÇÃO | C18: Un. | D18: Quant. Total | E18: PERÍODO- MÊSES | M18: TOTAL
E19: MÊS 1 | G19: MÊS 2 | I19: MÊS 3 | K19: MÊS 4
E20: Quant. | F20: Valor- R$ | G20: Quant. | H20: Valor- R$ | I20: Quant. | J20: Valor- R$ | K20: Quant. | L20: Valor- R$ | M20: Valor Unit. R$ | N20: Valor Total R$
A21: 4 | B21: Barrilete metálico secundário, fabricado em chapa de aço carbono #6,35 mm, Ø 700 mm x 4.000 mm, com três derivações de Ø 450 mm, flanges padrão ANSI/ABNT, pintura em tinta epoxi. | C21: Cj | D21: 10 | E21: 6 | F21: =E21*M21 -> 105800 | G21: 2 | H21: =G21*M21 -> 35266.66667 | I21: 2 | J21: =H21 -> 35266.66667 | M21: 17633.33333 | N21: 176333.33
A22: 5 | B22: Barrilete metálico primário esquerdo, fabricado em chapa de aço carbono #9,52 mm, Ø 1.200 mm x 10 m, com sete derivações de Ø 700 mm, flanges padrão ANSI/ABNT, pintura em tinta epoxi, com 07 Válvulas de Retenção Ø 28", fechamento rápido, montagem tipo waffer, PN 10, corpo em Ferro Nodular ASTM 536, obturador em Poliuretano e válvula ventosa tríplice função. | C22: Cj | D22: 1 | E22: 1 | F22: =N22 -> 270000 | M22: 270000 | N22: 270000
A23: 6 | B23: Barrilete metálico primário direito, fabricado em chapa de aço carbono #9,52 mm, Ø 800 mm x 5 m, com três derivações de Ø 700 mm, flanges padrão ANSI/ABNT, pintura em tinta epoxi, com 03 Válvulas de Retenção Ø 28", fechamento rápido, montagem tipo waffer, PN 10, corpo em Ferro Nodular ASTM 536, obturador em Poliuretano e válvula ventosa tríplice ação. | C23: Cj | D23: 1 | E23: 1 | F23: =M23 -> 126333.3333 | M23: 126333.3333 | N23: 126333.33
A24: 7 | B24: Transformadores AT/BT trifásicos à óleo, 2.000 KVA @ 6,6 KV x 440 V | C24: Unid. | D24: 3 | E24: 3 | F24: =N24 -> 396000 | M24: 132000 | N24: 396000
A25: 8 | B25: Painel elétrico de distribuição AT (CCA), 6,6 KV com chave e proteção, composto de uma coluna de entrada e 3 colunas de saída, medição de tensão e corrente. | C25: Unid. | D25: 1 | E25: 1 | F25: =N25 -> 457873.33 | M25: 457873.3333 | N25: 457873.33
A26: 9 | B26: Painel elétrico de distribuição BT 440V @ 2.500 A (CCB), entrada de 250 A e 10 saídas de 250 A, com chave motorizada , medição de corrente, medição de tensão e integração ao sistema de supervisão em plc para acionamento e controle remoto, montado em casco em aço carbono 1900 x 1600 x 800, IP-54. | C26: Unid. | D26: 3 | E26: 3 | F26: =N26 -> 340000 | M26: 113333.3333 | N26: 340000
A27: 10 | B27: Painel Elétrico de comando (CCM), com Soft Starter para motor 150 cv, 380/440 V @ 60 Hz, com inclusão da medição de corrente e capacitores para correção do fator de potência. | C27: Unid. | D27: 30 | G27: 30 | H27: =N27 -> 1428220 | M27: 47607.33333 | N27: 1428220
A28: 11 | B28: Painel de Controle e supervisão para acionamento remoto do sistema, com plc e microcomputador. | C28: Unid. | D28: 1 | G28: 1 | H28: 93000 | M28: 93000 | N28: 93000
A29: 12 | B29: Painéis Elétricos auxiliares de controle, para interligação dos painéis seccionadores BT ao painel de controle central. | C29: Unid. | D29: 3 | G29: 3 | H29: 85000 | M29: 28333.33333 | N29: 85000
A35: ITEM | B35: DISCRIMINAÇÃO | C35: Un. | D35: Quant. Total | E35: PERÍODO- MÊSES | M35: TOTAL
E36: MÊS 1 | G36: MÊS 2 | I36: MÊS 3 | K36: MÊS 4
E37: Quant. | F37: Valor- R$ | G37: Quant. | H37: Valor- R$ | I37: Quant. | J37: Valor- R$ | K37: Quant. | L37: Valor- R$ | M37: Valor Unit. R$ | N37: Valor Total R$
A38: 13 | B38: Materiais para montagem da infra estrutura de calhas e eletrodutos para encaminhamento dos cabos à partir da chave AT, passando pelo painel de distribuição AT (CCA) até a entrada dos transformadores, incluindo os materiais para preparação dos cubículos de transformação. | C38: Unid. | D38: 1 | G38: 1 | H38: 42000 | M38: 42000 | N38: 42000
A39: 14 | B39: Materiais para montagem da infra estrutura de calhas e eletrodutos para encaminhamento dos cabos à partir da saída BT dos transformadores até a entrada dos painéis de distribuição de BT (CCB), incluindo os materiais para preparação dos cubículos de distribuição. | C39: Unid. | D39: 1 | G39: 1 | H39: 79333.33 | M39: 79333.33333 | N39: 79333.33
A40: 15 | B40: Materiais para montagem da infra estrutura de calhas e eletrodutos para encaminhamento dos cabos à partir da saída dos painéis de distribuição de BT (CCB) até a entrada dos painéis de comando dos motores (CCM), incluindo os materiais para preparação dos cubículos de distribuição. | C40: Unid. | D40: 1 | G40: 1 | H40: 81666.67 | M40: 81666.66667 | N40: 81666.67
A41: 16 | B41: Materiais para montagem da infra estrutura de calhas e eletrodutos para encaminhamento dos cabos à partir da saída dos painéis de comando dos motores (CCM) até os motores dos conjuntos motobomba (nas plataformas flutuantes), incluindo os materiais para preparação dos suportes de sustentação dos cabos na parede da EB-1. | C41: Unid. | D41: 1 | G41: 1 | H41: 79333.33 | M41: 79333.33333 | N41: 79333.33
A42: 17 | B42: Cabos elétricos para interligação à partir da chave de AT até a entrada dos painéis de distribuição de BT (CCB), conforme bitolas e tipos abaixo listados: (estimativa das quantidades para composição de proposta, podendo ser revisada para menos após conclusão do projeto elétrico) - Cabo flexível unifilar, isolamento 8,7/15 KV, temperatura máxima de trabalho 90 °C, área de 150 mm²: 560 m (R$128,00/m) - Cabo flexível unifilar, isolamento 0,6/1 KV, temperatura máxima de trabalho 90 °C, área de 240 mm²: 1.620 m (R$76,75/m) - Cabo flexível unifilar, isolamento 0,6/1 KV, temperatura máxima de trabalho 90 °C, área de 120 mm²: 3.500 m (R$36,35/m) | C42: Cj | D42: 1 | G42: 1 | H42: 317068.33 | M42: 317068.3333 | N42: 317068.33
A46: ITEM | B46: DISCRIMINAÇÃO | C46: Un. | D46: Quant. Total | E46: PERÍODO- MÊSES | M46: TOTAL
E47: MÊS 1 | G47: MÊS 2 | I47: MÊS 3 | K47: MÊS 4
E48: Quant. | F48: Valor- R$ | G48: Quant. | H48: Valor- R$ | I48: Quant. | J48: Valor- R$ | K48: Quant. | L48: Valor- R$ | M48: Valor Unit. R$ | N48: Valor Total R$
A49: 18 | B49: Cabos elétricos para interligação à partir das saídas dos painéis de distribuição de BT (CCB) até os motores, conforme bitolas e tipos abaixo listados: (estimativa das quantidades para composição de proposta, podendo ser revisada para menos após conclusão do projeto elétrico) - Cabo flexível unifilar, isolamento 0,6/1 KV, temperatura máxima de trabalho 90 °C, área de 120 mm²: 6.850 m (R$36,35/m) - Cabo flexível 4 vias, isolamento 0,6/1 KV, temperatura máxima de trabalho 90 °C, área de 4x10,0 mm²: 15.000 m (R$19,30/m) - Cabo flexível 4 vias, isolamento 0,6/1 KV, temperatura máxima de trabalho 90 °C, área de 4x6,0 mm²: 3.000 m (R$12,90/m) - Cabo flexível 4 vias, isolamento 0,6/1 KV, temperatura máxima de trabalho 90 °C, área de 4x4,0 mm²: 3.000 m (R$8,50/m) - Cabo flexível 4 vias, isolamento 0,6/1 KV, temperatura máxima de trabalho 90 °C, área de 4x1,5 mm²: 3.000 m (R$3,75/m) - Cabo flexível 2 vias, isolamento 0,6/1 KV, temperatura máxima de trabalho 90 °C, área de 2x2,5 mm²: 5.000 m (R$2,92/m) - Cabo flexível 2 vias, isolamento 0,6/1 KV, temperatura máxima de trabalho 90 °C, área de 2x1,5 mm²: 5.000 m (R$2,12/m) | C49: Cj | D49: 1 | I49: 1 | J49: =N49 -> 656359.67 | M49: 656359.6667 | N49: 656359.67
A50: 19 | B50: Montagem da infra estrutura de calhas e eletrodutos, encaminhamento dos cabos e interligações à partir da chave AT, passando pelo painel de distribuição AT (CCA) até a entrada dos transformadores, incluindo a preparação dos cubículos de transformação. | C50: Unid. | D50: 1 | E50: 1 | F50: =N50 -> 79933.33 | M50: 79933.33333 | N50: 79933.33
A51: 20 | B51: Montagem da infra estrutura de calhas e eletrodutos, encaminhamento dos cabos e interligações à partir da saída BT dos transformadores até a entrada dos painéis de distribuição de BT (CCB), incluindo a preparação dos cubículos de distribuição. | C51: Unid. | D51: 1 | E51: 1 | F51: =N51 -> 138200 | M51: 138200 | N51: 138200
A52: 21 | B52: Montagem da infra estrutura de calhas e eletrodutos, encaminhamento dos cabos e interligações à partir da saída dos painéis de distribuição de BT (CCB) até a entrada dos painéis de comando dos motores (CCM), incluindo a preparação dos cubículos de distribuição. | C52: Unid. | D52: 1 | G52: 1 | H52: =N52 -> 113333.33 | M52: 113333.3333 | N52: 113333.33
A55: ITEM | B55: DISCRIMINAÇÃO | C55: Un. | D55: Quant. Total | E55: PERÍODO- MÊSES | M55: TOTAL
E56: MÊS 1 | G56: MÊS 2 | I56: MÊS 3 | K56: MÊS 4
E57: Quant. | F57: Valor- R$ | G57: Quant. | H57: Valor- R$ | I57: Quant. | J57: Valor- R$ | K57: Quant. | L57: Valor- R$ | M57: Valor Unit. R$ | N57: Valor Total R$
A58: 22 | B58: Montagem da infra estrutura de calhas e eletrodutos, encaminhamento dos cabos e interligações à partir da saída dos painéis de comando dos motores (CCM) até os motores dos conjuntos motobomba (nas plataformas flutuantes), incluindo a preparação dos suportes de sustentação dos cabos na parede da EB-1. | C58: Unid. | D58: 1 | G58: 1 | H58: =N58 -> 144200 | M58: 144200 | N58: 144200
A59: 23 | B59: Limpeza do espelho d'água da visada traseira da EB-1, com retirada de aguapés e instalação de linhas de flutuadores para bloquear o avanço das plantas aquáticas na área de instalação dos sistemas flutuantes. | C59: vb | D59: 1 | E59: 1 | F59: =N59 -> 23733.33 | M59: 23733.33333 | N59: 23733.33
A60: 24 | B60: Instalação dos dez (10) barriletes secundários, incluída a realização da ancoragem; instalação da tubulação em PEAD Ø 710 mm interligando aos barriletes primários. | C60: Unid. | D60: 10 | E60: 8 | F60: =E60*M60 -> 66666.66667 | G60: 2 | H60: =G60*M60 -> 16666.66667 | M60: 8333.333333 | N60: 83333.33
A61: 25 | B61: Instalação do barrilete primário esquerdo Ø 1.200 mm, incluída a picagem na Tubulação de recalque T10, com ensaios de líquido penetrante e ultrasom; instalação de sete (07) válvulas de retenção tipo clasar Ø 28"; realização da ancoragem. | C61: Unid. | D61: 1 | G61: 1 | H61: =N61 -> 65666.67 | M61: 65666.66667 | N61: 65666.67
A62: 26 | B62: Instalação do barrilete primário direito Ø 800 mm, incluída a picagem na Tubulação de recalque T10, com ensaios de líquido penetrante e ultrasom; instalação de três (03) válvulas de retenção tipo clasar Ø 28"; realização da ancoragem. | C62: Unid. | D62: 1 | G62: 1 | H62: =N62 -> 42676.67 | M62: 42676.66667 | N62: 42676.67
A66: ITEM | B66: DISCRIMINAÇÃO | C66: Un. | D66: Quant. Total | E66: PERÍODO- MÊSES | M66: TOTAL
E67: MÊS 1 | G67: MÊS 2 | I67: MÊS 3 | K67: MÊS 4
E68: Quant. | F68: Valor- R$ | G68: Quant. | H68: Valor- R$ | I68: Quant. | J68: Valor- R$ | K68: Quant. | L68: Valor- R$ | M68: Valor Unit. R$ | N68: Valor Total R$
A69: 27 | B69: Montagem mecânica de dez (10) plataformas metálicas flutuantes, totalizando 30 conjuntos motobomba, considerando descarregamento na obra, colocação no espelho d’água (previsto até 60 metros de distância da margem); interligação com a tubulação em PEAD Ø 450 mm e trecho flexível em mangote de borracha Ø 18" x 6,0 m (previsto até 130 pçs em PEAD – média de 4,5 pçs/conjunto); instalação da instrumentação de pressão e nível; instalação de dez (10) sistemas de escorva automático; instalação das válvulas de bloqueio tipo borboleta Ø 16"; instalação das válvulas de pé com crivo; execução das interligações da tubulação até os barriletes secundários; instalação de cabos de aço e anilhas para ancoragem das plataformas metálica flutuantes. Incluído no escopo da instalação os testes operacionais. | C69: Unid. | D69: 10 | E69: 8 | F69: =E69*M69 -> 184800 | G69: 2 | H69: =G69*M69 -> 46200 | M69: 23100 | N69: 231000
A70: 28 | B70: Projeto Executivo, com descrição do projeto mecânico, hidráulico e elétrico; diagrama unifilar de AT/BT/Controle; fluxograma de instrumentação; lay-out de montagem; desenho das embarcações; folhas de dados dos componentes. | C70: vb | D70: 1 | E70: 0.6 | F70: =E70*N70 -> 129000 | K70: 0.4 | L70: =K70*M70 -> 86000 | M70: 215000 | N70: 215000
A71: 29 | B71: Supervisão de Montagem Mecânica, Hidráulica e Elétrica, incluindo operação assistida por 10 dias | C71: dias | D71: 110 | E71: 30 | F71: =E71*M71 -> 57000 | G71: 30 | H71: =G71*M71 -> 57000 | I71: 30 | J71: =I71*M71 -> 57000 | K71: 20 | L71: =K71*M71 -> 38000 | M71: 1900 | N71: 209000
A72: 30 | B72: Mobilização do Canteiro de Obras, incluindo a Placa da Obra. | C72: Vb | D72: 1 | E72: 1 | F72: 78000 | M72: 76000 | N72: 76000
A73: 31 | B73: Desmobilização do Canteiro de Obras | C73: Vb | D73: 1 | K73: 1 | L73: 48000 | M73: 50000 | N73: 50000
A74: TOTAL DE SERVIÇOS | F74: =SUM(F12:F73) -> 7810686.657 | H74: =SUM(H12:H73) -> 4213998.33 | J74: =SUM(J12:J73) -> 748626.3367 | K74: =SUM(K12:K25) -> 0 | L74: =SUM(L12:L73) -> 172000 | N74: 12945311.33
